{"text_format":"3","workbook":"xlsx","n_sheets":4,"sheets":["Kezdés","Esküvői költségvetés","Kiegészítők-Fogadás-Zene-Képek","Dekoráció-Virág-Ajándék-Utazás"],"not_rendered":{"charts":1,"defined_names":22},"read":"whole","date_system":"1900"}

{"sheet":"Kezdés","index":0,"n_rows":7,"n_cols":2,"rows_kept":7}
[null,"A SABLON ISMERTETÉSE"]
[null,"Ezzel a sablonnal nyomon követheti esküvői kiadásait."]
[null,"Az egyes munkalapokon megadhatja a különböző kategóriák becsült és tényleges költségeit."]
[null,"Az esküvői költségvetés összegzése és a diagram automatikusan frissül."]
[null,"Megjegyzés: "]
[null,"Mindegyik munkalap A oszlopában további útmutatást olvashat. Ez a szöveg szándékosan van elrejtve. Ha törölni szeretné a szöveget, jelölje ki az A oszlopot, majd nyomja le a DELETE billentyűt. Ha láthatóvá szeretné tenni a szöveget, jelölje ki az A oszlopot, majd módosítsa a betűszínt."]
[null,"Ha többet szeretne megtudni a táblázatokról, nyomja le a SHIFT+F10 billentyűkombinációt egy táblázaton belül, válassza a TÁBLÁZAT parancsot, majd a HELYETTESÍTŐ SZÖVEG elemet."]

{"sheet":"Esküvői költségvetés","index":1,"n_rows":19,"n_cols":6,"rows_kept":19,"merged":[[2,2,4,5],[18,2,42,5]]}
["Ezen a munkalapon elkészíthet egy Esküvői költségvetés. A Kiegészítők-Fogadás-Zene-Képek és a Dekoráció-Virág-Ajándék-Utazás munkalapon adhatja meg az adatokat, aminek hatására frissül az aktuális munkalapon lévő összegzés és diagram. Ennek az oszlopnak a celláiban a munkalap használatát megkönnyítő útmutatás olvasható. A C1 cellában szerepel az Esküvő dátuma felirat.",null,"Esküvő dátuma:"]
["A C2 cellában adhatja meg az esküvő dátuma. Az E2 cellában a sablon automatikusan kiszámítja a hátralévő napok számát.",null,{"$f":"TODAY()+365","v":"2019-12-03"},"Hátralévő napok:",{"$f":"C2-TODAY()","v":365}]
["A C3 cellában található a munkalap címe. A következő utasítás az A6 cellában található.",null,"Esküvői költségvetés összegzése"]
[]
[]
["A C6 cellában kezdődő Költségvetés összegzése táblázat automatikusan frissül. A következő utasítás az A19 cellában található.",null,"KATEGÓRIA","BECSÜLT","TÉNYLEGES","TÖBB/KEVESEBB"]
[null,null,"Kiegészítők",{"$f":"Kiegészítők_összesen_becsült","v":{"v":9490,"d":"9,490.00"}},{"$f":"Kiegészítők_összesen_tényleges","v":{"v":9770,"d":"9,770.00"}},{"$f":"KöltségvetésÖsszegzése[[#This Row],[BECSÜLT]]-KöltségvetésÖsszegzése[[#This Row],[TÉNYLEGES]]","v":{"v":-280,"d":"-280.00"}}]
[null,null,"Fogadás",{"$f":"Fogadás_összesen_becsült","v":{"v":1050,"d":"1,050.00"}},{"$f":"Fogadás_összesen_tényleges","v":{"v":928,"d":"928.00"}},{"$f":"KöltségvetésÖsszegzése[[#This Row],[BECSÜLT]]-KöltségvetésÖsszegzése[[#This Row],[TÉNYLEGES]]","v":{"v":122,"d":"122.00"}}]
[null,null,"Zene",{"$f":"Zene_szórakoztatás_összesen_becsült","v":{"v":600,"d":"600.00"}},{"$f":"Zene_szórakoztatás_összesen_tényleges","v":{"v":400,"d":"400.00"}},{"$f":"KöltségvetésÖsszegzése[[#This Row],[BECSÜLT]]-KöltségvetésÖsszegzése[[#This Row],[TÉNYLEGES]]","v":{"v":200,"d":"200.00"}}]
[null,null,"Nyomda",{"$f":"Nyomda_papíráru_összesen_becsült","v":{"v":935,"d":"935.00"}},{"$f":"Nyomda_papíráru_összesen_tényleges","v":{"v":870,"d":"870.00"}},{"$f":"KöltségvetésÖsszegzése[[#This Row],[BECSÜLT]]-KöltségvetésÖsszegzése[[#This Row],[TÉNYLEGES]]","v":{"v":65,"d":"65.00"}}]
[null,null,"Fényképezés",{"$f":"Fényképezés_összesen_becsült","v":{"v":1625,"d":"1,625.00"}},{"$f":"Fényképezés_összesen_tényleges","v":{"v":1575,"d":"1,575.00"}},{"$f":"KöltségvetésÖsszegzése[[#This Row],[BECSÜLT]]-KöltségvetésÖsszegzése[[#This Row],[TÉNYLEGES]]","v":{"v":50,"d":"50.00"}}]
[null,null,"Dekoráció",{"$f":"Dekoráció_összesen_becsült","v":{"v":700,"d":"700.00"}},{"$f":"Dekoráció_összesen_tényleges","v":{"v":720,"d":"720.00"}},{"$f":"KöltségvetésÖsszegzése[[#This Row],[BECSÜLT]]-KöltségvetésÖsszegzése[[#This Row],[TÉNYLEGES]]","v":{"v":-20,"d":"-20.00"}}]
[null,null,"Virág",{"$f":"Virág_összesen_becsült","v":{"v":900,"d":"900.00"}},{"$f":"Virág_összesen_tényleges","v":{"v":850,"d":"850.00"}},{"$f":"KöltségvetésÖsszegzése[[#This Row],[BECSÜLT]]-KöltségvetésÖsszegzése[[#This Row],[TÉNYLEGES]]","v":{"v":50,"d":"50.00"}}]
[null,null,"Ajándék",{"$f":"Ajándék_összesen_becsült","v":{"v":1345,"d":"1,345.00"}},{"$f":"Ajándék_összesen_tényleges","v":{"v":1075,"d":"1,075.00"}},{"$f":"KöltségvetésÖsszegzése[[#This Row],[BECSÜLT]]-KöltségvetésÖsszegzése[[#This Row],[TÉNYLEGES]]","v":{"v":270,"d":"270.00"}}]
[null,null,"Utazás",{"$f":"Utazás_szállítás_összesen_becsült","v":{"v":100,"d":"100.00"}},{"$f":"Utazás_szállítás_összesen_tényleges","v":{"v":165,"d":"165.00"}},{"$f":"KöltségvetésÖsszegzése[[#This Row],[BECSÜLT]]-KöltségvetésÖsszegzése[[#This Row],[TÉNYLEGES]]","v":{"v":-65,"d":"-65.00"}}]
[null,null,"Egyéb",{"$f":"Egyéb_kiadások_összesen_becsült","v":{"v":885,"d":"885.00"}},{"$f":"Egyéb_kiadások_összesen_tényleges","v":{"v":1021,"d":"1,021.00"}},{"$f":"KöltségvetésÖsszegzése[[#This Row],[BECSÜLT]]-KöltségvetésÖsszegzése[[#This Row],[TÉNYLEGES]]","v":{"v":-136,"d":"-136.00"}}]
[null,null,"Összes kiadás",{"$f":"SUBTOTAL(109,KöltségvetésÖsszegzése[BECSÜLT])","v":{"v":17630,"d":"17630.00"}},{"$f":"SUBTOTAL(109,KöltségvetésÖsszegzése[TÉNYLEGES])","v":{"v":17374,"d":"17374.00"}},{"$f":"SUBTOTAL(109,KöltségvetésÖsszegzése[TÖBB/KEVESEBB])","v":{"v":256,"d":"256.00"}}]
["A C19 cellában automatikusan frissül a tortadiagram."]
[null,null,"Ebben a cellában szerepel az egyes kategóriák kiadásának százalékát megjelenítő tortadiagram."]

{"sheet":"Kiegészítők-Fogadás-Zene-Képek","index":2,"n_rows":56,"n_cols":6,"rows_kept":56,"merged":[[16,1,16,4],[28,1,28,4],[29,1,29,4],[35,1,35,4],[48,1,48,4]]}
["Ezen a munkalapon adhatja meg az egyes kategória becsült és tényleges költségét a megfelelő táblázatokban. A sablon az összegeket automatikusan összeveti a költségvetéssel (több/kevesebb). A jobbra lévő cellában szerepel a Kiegészítők felirat. Ennek az oszlopnak a celláiban a munkalap használatát megkönnyítő útmutatás olvasható. Első lépésként nyomja le a Le nyílbillentyűt.","Kiegészítők",{"$nulls":3}," "]
[" A jobbra lévő cellában kezdődő Kiegészítők táblázatban adhatja meg az adatokat. A következő utasítás az A18 cellában található.","KATEGÓRIA","BECSÜLT","TÉNYLEGES","TÖBB/KEVESEBB"," "]
[null,"Eljegyzési gyűrű(k)",{"v":1500,"d":"1,500.00"},{"v":1500,"d":"1,500.00"},{"$f":"'Kiegészítők-Fogadás-Zene-Képek'!$C3-'Kiegészítők-Fogadás-Zene-Képek'!$D3","v":{"v":0,"d":"0.00"}}]
[null,"1. házasulandó gyűrűje",{"v":2000,"d":"2,000.00"},{"v":2300,"d":"2,300.00"},{"$f":"'Kiegészítők-Fogadás-Zene-Képek'!$C4-'Kiegészítők-Fogadás-Zene-Képek'!$D4","v":{"v":-300,"d":"-300.00 "}}]
[null,"1. házasulandó ruhája/szmokingja",{"v":3000,"d":"3,000.00"},{"v":2750,"d":"2,750.00"},{"$f":"'Kiegészítők-Fogadás-Zene-Képek'!$C5-'Kiegészítők-Fogadás-Zene-Képek'!$D5","v":{"v":250,"d":"250.00"}}]
[null,"1. házasulandó fátyla/fejdísze",{"v":500,"d":"500.00"},{"v":500,"d":"500.00"},{"$f":"'Kiegészítők-Fogadás-Zene-Képek'!$C6-'Kiegészítők-Fogadás-Zene-Képek'!$D6","v":{"v":0,"d":"0.00"}}]
[null,"1. házasulandó cipője",{"v":350,"d":"350.00"},{"v":300,"d":"300.00"},{"$f":"'Kiegészítők-Fogadás-Zene-Képek'!$C7-'Kiegészítők-Fogadás-Zene-Képek'!$D7","v":{"v":50,"d":"50.00"}}]
[null,"1. házasulandó ékszerei",{"v":400,"d":"400.00"},{"v":550,"d":"550.00"},{"$f":"'Kiegészítők-Fogadás-Zene-Képek'!$C8-'Kiegészítők-Fogadás-Zene-Képek'!$D8","v":{"v":-150,"d":"-150.00 "}}]
[null,"1. házasulandó fehérneműje",{"v":20,"d":"20.00"},{"v":20,"d":"20.00"},{"$f":"'Kiegészítők-Fogadás-Zene-Képek'!$C9-'Kiegészítők-Fogadás-Zene-Képek'!$D9","v":{"v":0,"d":"0.00"}}]
[null,"2. házasulandó gyűrűje",{"v":300,"d":"300.00"},{"v":250,"d":"250.00"},{"$f":"'Kiegészítők-Fogadás-Zene-Képek'!$C10-'Kiegészítők-Fogadás-Zene-Képek'!$D10","v":{"v":50,"d":"50.00"}}]
[null,"2. házasulandó ruhája/szmokingja",{"v":300,"d":"300.00"},{"v":350,"d":"350.00"},{"$f":"'Kiegészítők-Fogadás-Zene-Képek'!$C11-'Kiegészítők-Fogadás-Zene-Képek'!$D11","v":{"v":-50,"d":"-50.00 "}}]
[null,"2. házasulandó fátyla/fejdísze",{"v":500,"d":"500.00"},{"v":500,"d":"500.00"},{"$f":"'Kiegészítők-Fogadás-Zene-Képek'!$C12-'Kiegészítők-Fogadás-Zene-Képek'!$D12","v":{"v":0,"d":"0.00"}}]
[null,"2. házasulandó cipője",{"v":200,"d":"200.00"},{"v":175,"d":"175.00"},{"$f":"'Kiegészítők-Fogadás-Zene-Képek'!$C13-'Kiegészítők-Fogadás-Zene-Képek'!$D13","v":{"v":25,"d":"25.00"}}]
[null,"2. házasulandó ékszerei",{"v":400,"d":"400.00"},{"v":550,"d":"550.00"},{"$f":"'Kiegészítők-Fogadás-Zene-Képek'!$C14-'Kiegészítők-Fogadás-Zene-Képek'!$D14","v":{"v":-150,"d":"-150.00 "}}]
[null,"2. házasulandó fehérneműje",{"v":20,"d":"20.00"},{"v":25,"d":"25.00"},{"$f":"'Kiegészítők-Fogadás-Zene-Képek'!$C15-'Kiegészítők-Fogadás-Zene-Képek'!$D15","v":{"v":-5,"d":"-5.00 "}}]
[null,"Ruházat összesen",{"$f":"SUBTOTAL(109,Kiegészítők[BECSÜLT])","v":{"v":9490,"d":"9,490.00"}},{"$f":"SUBTOTAL(109,Kiegészítők[TÉNYLEGES])","v":{"v":9770,"d":"9,770.00"}},{"$f":"SUBTOTAL(109,Kiegészítők[TÖBB/KEVESEBB])","v":{"v":-280,"d":"-280.00 "}}]
[]
["A jobbra lévő cellában szerepel a Fogadás felirat.","Fogadás*"]
["A jobbra lévő cellában kezdődő táblázatban adhatja meg a fogadás költségeit, a szórakoztatás és a dekoráció költségeit leszámítva. A következő utasítás az A31 cellában található.","KATEGÓRIA","BECSÜLT","TÉNYLEGES","TÖBB/KEVESEBB"]
[null,"Helyiségbérleti díjak",{"v":200,"d":"200.00"},{"v":150,"d":"150.00"},{"$f":"'Kiegészítők-Fogadás-Zene-Képek'!$C20-'Kiegészítők-Fogadás-Zene-Képek'!$D20","v":{"v":50,"d":"50.00"}}]
[null,"Asztalok és székek",{"v":100,"d":"100.00"},{"v":50,"d":"50.00"},{"$f":"'Kiegészítők-Fogadás-Zene-Képek'!$C21-'Kiegészítők-Fogadás-Zene-Képek'!$D21","v":{"v":50,"d":"50.00"}}]
[null,"Étel",{"v":0,"d":"0.00"},{"v":0,"d":"0.00"},{"$f":"'Kiegészítők-Fogadás-Zene-Képek'!$C22-'Kiegészítők-Fogadás-Zene-Képek'!$D22","v":{"v":0,"d":"0.00"}}]
[null,"Ital",{"v":0,"d":"0.00"},{"v":0,"d":"0.00"},{"$f":"'Kiegészítők-Fogadás-Zene-Képek'!$C23-'Kiegészítők-Fogadás-Zene-Képek'!$D23","v":{"v":0,"d":"0.00"}}]
[null,"Abroszok",{"v":0,"d":"0.00"},{"v":0,"d":"0.00"},{"$f":"'Kiegészítők-Fogadás-Zene-Képek'!$C24-'Kiegészítők-Fogadás-Zene-Képek'!$D24","v":{"v":0,"d":"0.00"}}]
[null,"Torta",{"v":700,"d":"700.00"},{"v":700,"d":"700.00"},{"$f":"'Kiegészítők-Fogadás-Zene-Képek'!$C25-'Kiegészítők-Fogadás-Zene-Képek'!$D25","v":{"v":0,"d":"0.00"}}]
[null,"Virágcsokrok",{"v":50,"d":"50.00"},{"v":28,"d":"28.00"},{"$f":"'Kiegészítők-Fogadás-Zene-Képek'!$C26-'Kiegészítők-Fogadás-Zene-Képek'!$D26","v":{"v":22,"d":"22.00"}}]
[null,"Személyzet és borravaló",{"v":0,"d":"0.00"},{"v":0,"d":"0.00"},{"$f":"'Kiegészítők-Fogadás-Zene-Képek'!$C27-'Kiegészítők-Fogadás-Zene-Képek'!$D27","v":{"v":0,"d":"0.00"}}]
[null,"Fogadás összesen",{"$f":"SUBTOTAL(109,Fogadás[BECSÜLT])","v":{"v":1050,"d":"1,050.00"}},{"$f":"SUBTOTAL(109,Fogadás[TÉNYLEGES])","v":{"v":928,"d":"928.00"}},{"$f":"SUBTOTAL(109,Fogadás[TÖBB/KEVESEBB])","v":{"v":122,"d":"122.00"}}]
[null,"*Kivéve a szórakoztatást és a dekorációt"]
[]
["A jobbra lévő cellában szerepel a Zene/szórakoztatás felirat.","Zene/szórakoztatás"]
["A jobbra lévő cellában kezdődő Zene táblázatban adhatja meg az adatokat. A következő utasítás az A37 cellában található.","KATEGÓRIA","BECSÜLT","TÉNYLEGES","TÖBB/KEVESEBB"]
[null,"Zenészek a szertartáson",{"v":400,"d":"400.00"},{"v":400,"d":"400.00"},{"$f":"'Kiegészítők-Fogadás-Zene-Képek'!$C33-'Kiegészítők-Fogadás-Zene-Képek'!$D33","v":{"v":0,"d":"0.00"}}]
[null,"Zenekar vagy DJ a fogadáson",{"v":200,"d":"200.00"},{"v":0,"d":"0.00"},{"$f":"'Kiegészítők-Fogadás-Zene-Képek'!$C34-'Kiegészítők-Fogadás-Zene-Képek'!$D34","v":{"v":200,"d":"200.00"}}]
[null,"Zene/szórakoztatás összesen",{"$f":"SUBTOTAL(109,Zene[BECSÜLT])","v":{"v":600,"d":"600.00"}},{"$f":"SUBTOTAL(109,Zene[TÉNYLEGES])","v":{"v":400,"d":"400.00"}},{"$f":"SUBTOTAL(109,Zene[TÖBB/KEVESEBB])","v":{"v":200,"d":"200.00"}}]
[]
["A jobbra lévő cellában szerepel a Nyomda/papíráru felirat.","Nyomda/papíráru"]
["A jobbra lévő cellában kezdődő Nyomda táblázatban adhatja meg az adatokat. A következő utasítás az A50 cellában található.","KATEGÓRIA","BECSÜLT","TÉNYLEGES","TÖBB/KEVESEBB"]
[null,"Meghívók",{"v":500,"d":"500.00"},{"v":450,"d":"450.00"},{"$f":"'Kiegészítők-Fogadás-Zene-Képek'!$C39-'Kiegészítők-Fogadás-Zene-Képek'!$D39","v":{"v":50,"d":"50.00"}}]
[null,"Hirdetmények",{"v":200,"d":"200.00"},{"v":175,"d":"175.00"},{"$f":"'Kiegészítők-Fogadás-Zene-Képek'!$C40-'Kiegészítők-Fogadás-Zene-Képek'!$D40","v":{"v":25,"d":"25.00"}}]
[null,"Köszönőkártyák",{"v":100,"d":"100.00"},{"v":100,"d":"100.00"},{"$f":"'Kiegészítők-Fogadás-Zene-Képek'!$C41-'Kiegészítők-Fogadás-Zene-Képek'!$D41","v":{"v":0,"d":"0.00"}}]
[null,"Személyre szóló dolgok",{"v":0,"d":"0.00"},{"v":0,"d":"0.00"},{"$f":"'Kiegészítők-Fogadás-Zene-Képek'!$C42-'Kiegészítők-Fogadás-Zene-Képek'!$D42","v":{"v":0,"d":"0.00"}}]
[null,"Vendégkönyv",{"v":25,"d":"25.00"},{"v":25,"d":"25.00"},{"$f":"'Kiegészítők-Fogadás-Zene-Képek'!$C43-'Kiegészítők-Fogadás-Zene-Képek'!$D43","v":{"v":0,"d":"0.00"}}]
[null,"Programok",{"v":75,"d":"75.00"},{"v":80,"d":"80.00"},{"$f":"'Kiegészítők-Fogadás-Zene-Képek'!$C44-'Kiegészítők-Fogadás-Zene-Képek'!$D44","v":{"v":-5,"d":"-5.00 "}}]
[null,"Szalvéták",{"v":35,"d":"35.00"},{"v":40,"d":"40.00"},{"$f":"'Kiegészítők-Fogadás-Zene-Képek'!$C45-'Kiegészítők-Fogadás-Zene-Képek'!$D45","v":{"v":-5,"d":"-5.00 "}}]
[null,"Levélgyufa",{"v":0,"d":"0.00"},{"v":0,"d":"0.00"},{"$f":"'Kiegészítők-Fogadás-Zene-Képek'!$C46-'Kiegészítők-Fogadás-Zene-Képek'!$D46","v":{"v":0,"d":"0.00"}}]
[null,"Kalligráfia",{"v":0,"d":"0.00"},{"v":0,"d":"0.00"},{"$f":"'Kiegészítők-Fogadás-Zene-Képek'!$C47-'Kiegészítők-Fogadás-Zene-Képek'!$D47","v":{"v":0,"d":"0.00"}}]
[null,"Nyomda/papíráru összesen",{"$f":"SUBTOTAL(109,Nyomda[BECSÜLT])","v":{"v":935,"d":"935.00"}},{"$f":"SUBTOTAL(109,Nyomda[TÉNYLEGES])","v":{"v":870,"d":"870.00"}},{"$f":"SUBTOTAL(109,Nyomda[TÖBB/KEVESEBB])","v":{"v":65,"d":"65.00"}}]
[]
["A jobbra lévő cellában szerepel a Fényképezés felirat.","Fényképezés"]
["A jobbra lévő cellában kezdődő Fényképezés táblázatban adhatja meg az adatokat.","KATEGÓRIA","BECSÜLT","TÉNYLEGES","TÖBB/KEVESEBB"]
[null,"Beállított képek",{"v":1300,"d":"1,300.00"},{"v":1300,"d":"1,300.00"},{"$f":"'Kiegészítők-Fogadás-Zene-Képek'!$C52-'Kiegészítők-Fogadás-Zene-Képek'!$D52","v":{"v":0,"d":"0.00"}}]
[null,"Utánrendelések",{"v":25,"d":"25.00"},{"v":25,"d":"25.00"},{"$f":"'Kiegészítők-Fogadás-Zene-Képek'!$C53-'Kiegészítők-Fogadás-Zene-Képek'!$D53","v":{"v":0,"d":"0.00"}}]
[null,"Fényképalbumok",{"v":100,"d":"100.00"},{"v":100,"d":"100.00"},{"$f":"'Kiegészítők-Fogadás-Zene-Képek'!$C54-'Kiegészítők-Fogadás-Zene-Képek'!$D54","v":{"v":0,"d":"0.00"}}]
[null,"Videó",{"v":200,"d":"200.00"},{"v":150,"d":"150.00"},{"$f":"'Kiegészítők-Fogadás-Zene-Képek'!$C55-'Kiegészítők-Fogadás-Zene-Képek'!$D55","v":{"v":50,"d":"50.00"}}]
[null,"Fényképezés összesen",{"$f":"SUBTOTAL(109,Fényképezés[BECSÜLT])","v":{"v":1625,"d":"1,625.00"}},{"$f":"SUBTOTAL(109,Fényképezés[TÉNYLEGES])","v":{"v":1575,"d":"1,575.00"}},{"$f":"SUBTOTAL(109,Fényképezés[TÖBB/KEVESEBB])","v":{"v":50,"d":"50.00"}}]

{"sheet":"Dekoráció-Virág-Ajándék-Utazás","index":3,"n_rows":48,"n_cols":5,"rows_kept":48,"merged":[[8,1,8,4],[9,1,9,4],[18,1,18,4],[27,1,27,4],[34,1,34,4]]}
["Ezen a munkalapon adhatja meg az egyes kategória becsült és tényleges költségét a megfelelő táblázatokban. A sablon az összegeket automatikusan összeveti a költségvetéssel (több/kevesebb). A jobbra lévő cellában szerepel a Dekoráció felirat. Ennek az oszlopnak a celláiban a munkalap használatát megkönnyítő útmutatás olvasható. Első lépésként nyomja le a Le nyílbillentyűt.","Dekoráció*"]
["A jobbra lévő cellában kezdődő táblázatban adhatja meg a dekorációs költségeket, a virágok költségeit leszámítva. A következő utasítás az A11 cellában található.","KATEGÓRIA","BECSÜLT","TÉNYLEGES","TÖBB/KEVESEBB"]
[null,"Csokrok az asztalokra",{"v":0,"d":"0.00"},{"v":0,"d":"0.00"},{"$f":"'Dekoráció-Virág-Ajándék-Utazás'!$C3-'Dekoráció-Virág-Ajándék-Utazás'!$D3","v":{"v":0,"d":"0.00"}}]
[null,"Asztaldíszek",{"v":300,"d":"300.00"},{"v":320,"d":"320.00"},{"$f":"'Dekoráció-Virág-Ajándék-Utazás'!$C4-'Dekoráció-Virág-Ajándék-Utazás'!$D4","v":{"v":-20,"d":"-20.00 "}}]
[null,"Gyertyák",{"v":100,"d":"100.00"},{"v":75,"d":"75.00"},{"$f":"'Dekoráció-Virág-Ajándék-Utazás'!$C5-'Dekoráció-Virág-Ajándék-Utazás'!$D5","v":{"v":25,"d":"25.00"}}]
[null,"Világítás",{"v":100,"d":"100.00"},{"v":75,"d":"75.00"},{"$f":"'Dekoráció-Virág-Ajándék-Utazás'!$C6-'Dekoráció-Virág-Ajándék-Utazás'!$D6","v":{"v":25,"d":"25.00"}}]
[null,"Léggömbök",{"v":200,"d":"200.00"},{"v":250,"d":"250.00"},{"$f":"'Dekoráció-Virág-Ajándék-Utazás'!$C7-'Dekoráció-Virág-Ajándék-Utazás'!$D7","v":{"v":-50,"d":"-50.00 "}}]
[null,"Dekoráció összesen",{"$f":"SUBTOTAL(109,Dekoráció[BECSÜLT])","v":{"v":700,"d":"700.00"}},{"$f":"SUBTOTAL(109,Dekoráció[TÉNYLEGES])","v":{"v":720,"d":"720.00"}},{"$f":"SUBTOTAL(109,Dekoráció[TÖBB/KEVESEBB])","v":{"v":-20,"d":"-20.00 "}}]
[null,"*Kivéve a virágokat"]
[]
["A jobbra lévő cellában szerepel a Virág felirat.","Virág"]
["A jobbra lévő cellában kezdődő Virág táblázatban adhatja meg az adatokat. A következő utasítás az A20 cellában található.","KATEGÓRIA","BECSÜLT","TÉNYLEGES","TÖBB/KEVESEBB"]
[null,"Csokrok",{"v":500,"d":"500.00"},{"v":450,"d":"450.00"},{"$f":"'Dekoráció-Virág-Ajándék-Utazás'!$C13-'Dekoráció-Virág-Ajándék-Utazás'!$D13","v":{"v":50,"d":"50.00"}}]
[null,"Kitűzők",{"v":0,"d":"0.00"},{"v":0,"d":"0.00"},{"$f":"'Dekoráció-Virág-Ajándék-Utazás'!$C14-'Dekoráció-Virág-Ajándék-Utazás'!$D14","v":{"v":0,"d":"0.00"}}]
[null,"Virágcsokrok",{"v":0,"d":"0.00"},{"v":0,"d":"0.00"},{"$f":"'Dekoráció-Virág-Ajándék-Utazás'!$C15-'Dekoráció-Virág-Ajándék-Utazás'!$D15","v":{"v":0,"d":"0.00"}}]
[null,"Szertartás",{"v":400,"d":"400.00"},{"v":400,"d":"400.00"},{"$f":"'Dekoráció-Virág-Ajándék-Utazás'!$C16-'Dekoráció-Virág-Ajándék-Utazás'!$D16","v":{"v":0,"d":"0.00"}}]
[null,"Fogadás",{"v":0,"d":"0.00"},{"v":0,"d":"0.00"},{"$f":"'Dekoráció-Virág-Ajándék-Utazás'!$C17-'Dekoráció-Virág-Ajándék-Utazás'!$D17","v":{"v":0,"d":"0.00"}}]
[null,"Virág összesen",{"$f":"SUBTOTAL(109,Virág[BECSÜLT])","v":{"v":900,"d":"900.00"}},{"$f":"SUBTOTAL(109,Virág[TÉNYLEGES])","v":{"v":850,"d":"850.00"}},{"$f":"SUBTOTAL(109,Virág[TÖBB/KEVESEBB])","v":{"v":50,"d":"50.00"}}]
[]
["A jobbra lévő cellában szerepel az Ajándék felirat.","Ajándék"]
["A jobbra lévő cellában kezdődő Ajándék táblázatban adhatja meg az adatokat. A következő utasítás az A29 cellában található.","KATEGÓRIA","BECSÜLT","TÉNYLEGES","TÖBB/KEVESEBB"]
[null,"Segítők",{"v":1000,"d":"1,000.00"},{"v":400,"d":"400.00"},{"$f":"'Dekoráció-Virág-Ajándék-Utazás'!$C22-'Dekoráció-Virág-Ajándék-Utazás'!$D22","v":{"v":600,"d":"600.00"}}]
[null,"1. házasulandó",{"v":150,"d":"150.00"},{"v":200,"d":"200.00"},{"$f":"'Dekoráció-Virág-Ajándék-Utazás'!$C23-'Dekoráció-Virág-Ajándék-Utazás'!$D23","v":{"v":-50,"d":"-50.00 "}}]
[null,"2. házasulandó",{"v":150,"d":"150.00"},{"v":200,"d":"200.00"},{"$f":"'Dekoráció-Virág-Ajándék-Utazás'!$C24-'Dekoráció-Virág-Ajándék-Utazás'!$D24","v":{"v":-50,"d":"-50.00 "}}]
[null,"Szülők",{"v":25,"d":"25.00"},{"v":25,"d":"25.00"},{"$f":"'Dekoráció-Virág-Ajándék-Utazás'!$C25-'Dekoráció-Virág-Ajándék-Utazás'!$D25","v":{"v":0,"d":"0.00"}}]
[null,"Felolvasók/egyéb résztvevők",{"v":20,"d":"20.00"},{"v":250,"d":"250.00"},{"$f":"'Dekoráció-Virág-Ajándék-Utazás'!$C26-'Dekoráció-Virág-Ajándék-Utazás'!$D26","v":{"v":-230,"d":"-230.00 "}}]
[null,"Ajándék összesen",{"$f":"SUBTOTAL(109,Ajándék[BECSÜLT])","v":{"v":1345,"d":"1,345.00"}},{"$f":"SUBTOTAL(109,Ajándék[TÉNYLEGES])","v":{"v":1075,"d":"1,075.00"}},{"$f":"SUBTOTAL(109,Ajándék[TÖBB/KEVESEBB])","v":{"v":270,"d":"270.00"}}]
[]
["A jobbra lévő cellában szerepel az Utazás/szállítás felirat.","Utazás/szállítás"]
["A jobbra lévő cellában kezdődő Utazás táblázatban adhatja meg az adatokat. A következő utasítás az A36 cellában található.","KATEGÓRIA","BECSÜLT","TÉNYLEGES","TÖBB/KEVESEBB"]
[null,"Limuzin és kézikocsik",{"v":100,"d":"100.00"},{"v":125,"d":"125.00"},{"$f":"'Dekoráció-Virág-Ajándék-Utazás'!$C31-'Dekoráció-Virág-Ajándék-Utazás'!$D31","v":{"v":-25,"d":"-25.00 "}}]
[null,"Parkolás",{"v":0,"d":"0.00"},{"v":40,"d":"40.00"},{"$f":"'Dekoráció-Virág-Ajándék-Utazás'!$C32-'Dekoráció-Virág-Ajándék-Utazás'!$D32","v":{"v":-40,"d":"-40.00 "}}]
[null,"Taxi",{"v":0,"d":"0.00"},{"v":0,"d":"0.00"},{"$f":"'Dekoráció-Virág-Ajándék-Utazás'!$C33-'Dekoráció-Virág-Ajándék-Utazás'!$D33","v":{"v":0,"d":"0.00"}}]
[null,"Utazás/szállítás összesen",{"$f":"SUBTOTAL(109,Utazás[BECSÜLT])","v":{"v":100,"d":"100.00"}},{"$f":"SUBTOTAL(109,Utazás[TÉNYLEGES])","v":{"v":165,"d":"165.00"}},{"$f":"SUBTOTAL(109,Utazás[TÖBB/KEVESEBB])","v":{"v":-65,"d":"-65.00 "}}]
[]
["A jobbra lévő cellában szerepel az Egyéb kiadások felirat.","Egyéb kiadások"]
["A jobbra lévő cellában kezdődő Egyéb kiadások táblázatban adhatja meg az adatokat.","KATEGÓRIA","BECSÜLT","TÉNYLEGES","TÖBB/KEVESEBB"]
[null,"Pap vagy szertartásvezető",{"v":0,"d":"0.00"},{"v":0,"d":"0.00"},{"$f":"'Dekoráció-Virág-Ajándék-Utazás'!$C38-'Dekoráció-Virág-Ajándék-Utazás'!$D38","v":{"v":0,"d":"0.00"}}]
[null,"Templom vagy szertartás helyszínének díja",{"v":40,"d":"40.00"},{"v":55,"d":"55.00"},{"$f":"'Dekoráció-Virág-Ajándék-Utazás'!$C39-'Dekoráció-Virág-Ajándék-Utazás'!$D39","v":{"v":-15,"d":"-15.00 "}}]
[null,"Esküvőszervező",{"v":0,"d":"0.00"},{"v":0,"d":"0.00"},{"$f":"'Dekoráció-Virág-Ajándék-Utazás'!$C40-'Dekoráció-Virág-Ajándék-Utazás'!$D40","v":{"v":0,"d":"0.00"}}]
[null,"Próbavacsora",{"v":450,"d":"450.00"},{"v":450,"d":"450.00"},{"$f":"'Dekoráció-Virág-Ajándék-Utazás'!$C41-'Dekoráció-Virág-Ajándék-Utazás'!$D41","v":{"v":0,"d":"0.00"}}]
[null,"Eljegyzési mulatság",{"v":20,"d":"20.00"},{"v":50,"d":"50.00"},{"$f":"'Dekoráció-Virág-Ajándék-Utazás'!$C42-'Dekoráció-Virág-Ajándék-Utazás'!$D42","v":{"v":-30,"d":"-30.00 "}}]
[null,"Ajándékosztások",{"v":30,"d":"30.00"},{"v":20,"d":"20.00"},{"$f":"'Dekoráció-Virág-Ajándék-Utazás'!$C43-'Dekoráció-Virág-Ajándék-Utazás'!$D43","v":{"v":10,"d":"10.00"}}]
[null,"Fodrász és kozmetikus",{"v":45,"d":"45.00"},{"v":46,"d":"46.00"},{"$f":"'Dekoráció-Virág-Ajándék-Utazás'!$C44-'Dekoráció-Virág-Ajándék-Utazás'!$D44","v":{"v":-1,"d":"-1.00 "}}]
[null,"Leánybúcsú és legénybúcsú",{"v":0,"d":"0.00"},{"v":0,"d":"0.00"},{"$f":"'Dekoráció-Virág-Ajándék-Utazás'!$C45-'Dekoráció-Virág-Ajándék-Utazás'!$D45","v":{"v":0,"d":"0.00"}}]
[null,"Villásreggeli",{"v":300,"d":"300.00"},{"v":400,"d":"400.00"},{"$f":"'Dekoráció-Virág-Ajándék-Utazás'!$C46-'Dekoráció-Virág-Ajándék-Utazás'!$D46","v":{"v":-100,"d":"-100.00 "}}]
[null,"Szállodai szobák",{"v":0,"d":"0.00"},{"v":0,"d":"0.00"},{"$f":"'Dekoráció-Virág-Ajándék-Utazás'!$C47-'Dekoráció-Virág-Ajándék-Utazás'!$D47","v":{"v":0,"d":"0.00"}}]
[null,"Egyéb kiadások összesen",{"$f":"SUBTOTAL(109,EgyébKiadások[BECSÜLT])","v":{"v":885,"d":"885.00"}},{"$f":"SUBTOTAL(109,EgyébKiadások[TÉNYLEGES])","v":{"v":1021,"d":"1,021.00"}},{"$f":"SUBTOTAL(109,EgyébKiadások[TÖBB/KEVESEBB])","v":{"v":-136,"d":"-136.00 "}}]